Cogmind - Beta 13 @@@ ROGUE MODE // 2024.03.31 @ 19:24:23 Player: Silis Result: Destroyed by Y-45 Defender with Heavy Assault Rifle Performance ------------- Evolutions (1) 500 Regions Visited (3) 600 Robots Destroyed (20) 100 Value Destroyed (372) 372 Prototype IDs (0) 0 Alien Tech Used (0) 0 Bonus (0) 0 TOTAL SCORE: 1572 Bonus ------- None Cogmind --------- Core Integrity 0/400 Matter 171/300 Energy 264/265 System Corruption 0% Temperature Cool (15) Movement Core (150) Ox2 Location -9/Materials Parts ------- > --- POWER (2) -------- Improved Ion Engine > --- PROPULSION (3) --- (None) > --- UTILITY (2) ------ Backup Plating III > --- WEAPON (2) ------- (None) > --- INVENTORY (5) ---- VTOL Module VTOL Module Peak State ------------ > --- POWER ------------ Light Ion Engine > --- PROPULSION ------- Flight Unit Flight Unit > --- UTILITY ---------- Backup Plating III Backup Plating III > --- WEAPON ----------- Light Assault Rifle Light Assault Rifle > --- INVENTORY -------- Light Ion Engine Flight Unit Light Assault Rifle Grenade Launcher [Rating: 11] Favorites ----------- Power Light Ion Engine Engine Light Ion Engine Propulsion Flight Unit Leg Aluminum Leg Flight Unit Flight Unit Utility Backup Plating III Protection Backup Plating III Weapon Light Assault Rifle Ballistic Gun Light Assault Rifle Launcher Grenade Launcher Special Melee Weapon Datajack Build | -11 -10 -10 -9 ------- Run | Yrd Mat Min Mat Slots Evolved 2 | . . . 2 Power 1 | . . . 1 Propulsion 1 | . . . 1 Utility . | . . . . Weapon . | . . . . Parts Attached 28 | 5 2 2 19 Power 6 | 1 . 1 4 Engine 6 | 1 . 1 4 Core . | . . . . Reactor . | . . . . Propulsion 9 | 2 2 . 5 Treads . | . . . . Leg 2 | 2 . . . Wheel . | . . . . Hover . | . . . . Flight 7 | . 2 . 5 Utility 5 | . . . 5 Device . | . . . . Storage . | . . . . Processor . | . . . . Hackware . | . . . . Protection 5 | . . . 5 Artifact . | . . . . Weapon 8 | 2 . 1 5 Energy Gun . | . . . . Energy Cannon . | . . . . Ballistic Gun 4 | 2 . . 2 Ballistic Cannon . | . . . . Launcher 3 | . . 1 2 Special Weapon . | . . . . Impact Weapon . | . . . . Slashing Weapon . | . . . . Piercing Weapon . | . . . . Special Melee Weapon 1 | . . . 1 Unidentified Prototypes . | . . . . Parts Lost 17 | . . 1 16 Power 3 | . . 1 2 Propulsion 7 | . . . 7 Utility 1 | . . . 1 Weapon 6 | . . . 6 Highest Loss Streak 6 | . . 1 6 To Critical Strikes . | . . . . Average Slot Usage (%) 62 | . 77 76 42 Engine 9 | . 14 11 6 Leg 3 | . 14 . . Flight 18 | . 14 28 15 Protection 10 | . 6 14 10 Ballistic Gun 16 | . 28 21 5 Launcher 1 | . . . 3 Naked Turns 1 | . . . 1 Heaviest Build 16 | 5 9 9 16 Greatest Support 20 | 20 20 8 12 Greatest Overweight (x) 4 | . 1 1 4 Average Overweight (x) . | . . . . Largest Inventory Capacity 5 | 5 5 5 5 Average Capacity 5 | 5 5 5 5 Most Carried 5 | 2 5 5 5 Average Carried 2 | . 2 4 2 Final Capacity 5 | 5 5 5 5 Final Carried 5 | . 5 4 2 Class Distribution -------------------- 88% | Mutant 11% | Scavenger-Mutant Dominant Class ---------------- Mutant | -10/Materials Mutant | -10/Mines Mutant | -9/Materials Resources | -11 -10 -10 -9 ----------- Run | Yrd Mat Min Mat Matter Collected 491 | 260 38 76 117 Remotely . | . . . . Salvage Created 428 | 48 97 116 167 Parts 42 | 1 11 7 23 Haulers Intercepted . | . . . . Recyclers Shooed 2 | . . 1 1 Parts Field Recycled . | . . . . Retrieved Matter . | . . . . Parts Self-Destructed . | . . . . Prevented . | . . . . Kills | -11 -10 -10 -9 ------- Run | Yrd Mat Min Mat Combat Hostiles Destroyed 19 | 1 4 2 12 Guns 11 | 1 4 2 4 AOE 8 | . . . 8 Classes Destroyed 4 | 1 1 1 1 Worker 1 | . . 1 . Swarmer 13 | . 3 . 10 Grunt 5 | 1 1 2 1 Sentry 1 | . . . 1 Best Kill Streak 4 | 1 2 2 4 Combat Bots Only 4 | 1 2 2 4 Max Kills in Single Turn 2 | 1 1 1 2 Gunslinging . | . . . . Exploded 2 | . . . 2 Melee . | . . . . Uniques/NPCs Destroyed . | . . . . Combat | -11 -10 -10 -9 -------- Run | Yrd Mat Min Mat Hostile Shots Fired 218 | 6 43 19 150 Missed 80 | 1 13 6 60 Damage Taken 1564 | 56 263 182 1063 Core 542 | 12 74 53 403 Absorbed by Shields . | . . . . Core Remaining (%) 69 | 95 . 44 . Volleys Fired 100 | 5 19 25 51 Largest 2 | 2 2 2 2 Hottest 50 | 40 40 40 50 Shots Fired 144 | 10 38 41 55 Gun 135 | 10 38 41 46 Cannon . | . . . . Launcher 9 | . . . 9 Special . | . . . . Kinetic 135 | 10 38 41 46 Thermal . | . . . . Explosive 9 | . . . 9 Electromagnetic . | . . . . Robot Hit Streak 15 | 5 6 8 15 Robot Miss Streak 12 | 2 12 4 2 Penetration Max . | . . . . Secondary Targets 1 | . 1 . . Max Gunslinging Chain 1 | . 1 . . Shots Hit Robots 95 | 7 17 27 44 Core Hits 46 | 3 9 10 24 Critical Kills 1 | . 1 . . Critical Parts Destroyed 2 | . 1 . 1 Critical Strikes 3 | . 2 . 1 Destroy 3 | . 2 . 1 Melee Attacks 4 | . . . 4 Impact . | . . . . Slashing . | . . . . Piercing . | . . . . Sneak Attacks . | . . . . Combat Hostiles . | . . . . Follow-up Attacks . | . . . . Damage Inflicted 1225 | 60 137 198 830 Guns 705 | 60 137 198 310 Cannons . | . . . . Explosions 520 | . . . 520 Melee . | . . . . Ramming . | . . . . Kinetic 705 | 60 137 198 310 Thermal . | . . . . Explosive 520 | . . . 520 Electromagnetic . | . . . . Impact . | . . . . Slashing . | . . . . Piercing . | . . . . Highest Corruption . | . . . . Average Corruption . | . . . . Corruption Purged . | . . . . Corruption Blocked . | . . . . Overload Shots . | . . . . Overflow Damage 28 | . . . 28 Projectiles . | . . . . Explosions 28 | . . . 28 Melee . | . . . . Knockbacks . | . . . . Impact . | . . . . Kinetic . | . . . . Secondary . | . . . . Self-Inflicted Damage 108 | . . . 108 Shots 4 | . . . 4 Rammed . | . . . . Targets Rammed . | . . . . Kicked . | . . . . Crushed . | . . . . Highest Temperature 47 | 6 34 47 24 Average Temperature 11 | 6 17 12 6 Received Heat Transfer 591 | 30 30 138 393 Siege Activations . | . . . . Robots Corrupted . | . . . . Combat Hostiles . | . . . . Parts Fried . | . . . . Impact Corruptions . | . . . . Robots Melted . | . . . . Combat Hostiles . | . . . . Parts Melted . | . . . . Heat Transferred . | . . . . Parts Sabotaged . | . . . . Parts Stolen . | . . . . Parts Stripped . | . . . . Power Chain Reactions . | . . . . Alert | -11 -10 -10 -9 ------- Run | Yrd Mat Min Mat Peak Influence 311 | 20 181 115 311 Initial 70 | . 13 70 44 Average 121 | 2 74 94 215 Maximum Alert Level 1 | . . . 1 Low Security (%) 80 | 100 100 100 45 Level 1 19 | . . . 54 Level 2 . | . . . . Level 3 . | . . . . Level 4 . | . . . . Level 5 . | . . . . High Security . | . . . . Max Security . | . . . . Squads Dispatched 3 | . 1 . 2 Investigation 1 | . 1 . . Extermination . | . . . . Reinforcement 2 | . . . 2 Assault . | . . . . Garrison . | . . . . Intercept . | . . . . Searches Triggered . | . . . . Construction Impeded . | . . . . Haulers Reinforced . | . . . . Active Scanning Responses . | . . . . Cargo Convoy Interrupts . | . . . . Stealth | -11 -10 -10 -9 --------- Run | Yrd Mat Min Mat Distress Signals 5 | . . . 5 Communications Jammed . | . . . . Distress Signals . | . . . . Times Spotted 34 | 1 7 2 24 Peak Tracking Total 6 | 1 4 2 6 Tactical Retreats 4 | . 3 . 1 Traps | -11 -10 -10 -9 ------- Run | Yrd Mat Min Mat Traps Triggered . | . . . . Indirectly . | . . . . Trap Hack Attempts . | . . . . Triggered . | . . . . Disarmed . | . . . . Reprogrammed . | . . . . Reused . | . . . . Traps Extracted . | . . . . Installed . | . . . . Triggered . | . . . . Machines | -11 -10 -10 -9 ---------- Run | Yrd Mat Min Mat Machines Disabled . | . . . . Max in Single Turn . | . . . . Machines Repaired . | . . . . Machines Dismantled . | . . . . Machines Sabotaged . | . . . . Overloaded Fab Kills . | . . . . Hacking | -11 -10 -10 -9 --------- Run | Yrd Mat Min Mat Machines Accessed 4 | . 2 . 2 Terminals 3 | . 1 . 2 Fabricators . | . . . . Repair Stations 1 | . 1 . . Recycling Units . | . . . . Scanalyzers . | . . . . Garrison Access . | . . . . Total Hacks 14 | . 5 . 9 Successful 8 | . 2 . 6 Failed 6 | . 3 . 3 Catastrophic 1 | . 1 . . Database Lockouts . | . . . . Manual . | . . . . Terminals 12 | . 3 . 9 Fabricators . | . . . . Repair Stations 2 | . 2 . . Recycling Units . | . . . . Scanalyzers . | . . . . Garrison Access . | . . . . Terminal Hacks 7 | . 1 . 6 Record 5 | . 1 . 4 Dispatch Records 1 | . . . 1 Transport Status 1 | . . . 1 Fabricator Hacks . | . . . . Repair Station Hacks 1 | . 1 . . Refit 1 | . 1 . . Recycling Unit Hacks . | . . . . Scanalyzer . | . . . . Garrison Access Hacks . | . . . . Unauthorized Hacks . | . . . . Terminals . | . . . . Fabricators . | . . . . Repair Stations . | . . . . Recycling Units . | . . . . Scanalyzers . | . . . . Garrison Access . | . . . . Data Cores Recovered . | . . . . Used . | . . . . Hacking Detections 3 | . 2 . 1 Full Trace Events 2 | . 2 . . Feedback Events . | . . . . Feedback Blocked . | . . . . Robot Schematics Acquired . | . . . . Robots Built . | . . . . Authchips . | . . . . Time . | . . . . Total Robot Build Rating . | . . . . Part Schematics Acquired . | . . . . Parts Built . | . . . . Authchips . | . . . . Time . | . . . . Total Part Build Rating . | . . . . Parts Repaired . | . . . . Time . | . . . . Parts Recycled . | . . . . Recycled Matter . | . . . . Retrieved Matter . | . . . . Retrieved Components . | . . . . Parts Scanalyzed . | . . . . Part Schematics Acquired . | . . . . Parts Damaged . | . . . . Bothacking | -11 -10 -10 -9 ------------ Run | Yrd Mat Min Mat Used RIF Installer . | . . . . Robots Hacked 1 | . . . 1 Non-combat . | . . . . Combat 1 | . . . 1 Robot Hacks Applied 2 | . . . 2 parse_system 2 | . . . 2 Relay Couplers Released . | . . . . Fabnet Peak Effective % . | . . . . Robots Rewired . | . . . . Allies Hacked . | . . . . Hacks Repelled . | . . . . Allies | -11 -10 -10 -9 -------- Run | Yrd Mat Min Mat Total Allies . | . . . . Largest Group . | . . . . Highest-Rated Group . | . . . . Highest-Rated Ally . | . . . . Total Orders . | . . . . Ally Attacks . | . . . . Total Damage . | . . . . Kills . | . . . . Allies Corrupted . | . . . . Allies Melted . | . . . . Intel | -11 -10 -10 -9 ------- Run | Yrd Mat Min Mat Robot Analysis Total . | . . . . Derelict Logs Recovered 2 | . . 2 . Drone Launches . | . . . . Drone Recoveries . | . . . . Exploration | -11 -10 -10 -9 ------------- Run | Yrd Mat Min Mat Turns Passed 679 | 94 156 181 248 Spaces Moved 755 | 74 167 312 202 Core 58 | 25 . . 33 Treads . | . . . . Legs 86 | 49 37 . . Wheels . | . . . . Hover . | . . . . Flight 611 | . 130 312 169 Fastest Speed 34 | 50 37 37 34 Average Speed 52 | 96 56 38 55 Slowest Speed 250 | 120 120 117 250 Overloaded Moves . | . . . . Propulsion Burnouts . | . . . . Robots Hopped 2 | . . . 2 Cave-ins Triggered . | . . . . Exploration Rate (%) 28 | 6 26 70 10 Regions Visited 3 Branch Regions 1 Pre-discovered Areas . | . . . . Known Exits Taken . | . . . . Unknown Exits Taken 3 | 1 1 1 . Scrap Searched 1 | . . 1 . Spaces Dug . | . . . . Terrain Destroyed 44 | . . . 44 Melee . | . . . . Projectile . | . . . . AOE 44 | . . . 44 Terrain Rammed . | . . . . Walls Destroyed . | . . . . Machines Disabled . | . . . . Actions | -11 -10 -10 -9 --------- Run | Yrd Mat Min Mat Total 920 | 88 200 340 292 Wait . | . . . . Move 748 | 73 166 311 198 Hop 2 | . . . 2 Pick Up 24 | 5 7 . 12 Fast Attach . | . . . . Attach 27 | 5 2 2 18 Detach 9 | . 3 1 5 Swap 1 | . . . 1 Drop 5 | . 3 1 1 Fire 100 | 5 19 25 51 Melee 4 | . . . 4 Ram . | . . . . Kick . | . . . . Crush . | . . . . Escape Stasis . | . . . . Rewire . | . . . . Trap . | . . . . Miscellaneous . | . . . . Route ------- -11/Scrapyard -10/Materials -10/Mines -9/Materials History --------- Turn | Location | Event 2 | -11/Scrapyard | Met Revision 17 67 | -11/Scrapyard | Discovered new exit (range 8) 95 | -11/Scrapyard | Entered Materials 246 | -10/Materials | Discovered new exit (range 15) 251 | -10/Materials | Entered Mines 318 | -10/Mines | Build established: Mutant 325 | -10/Mines | Core integrity fell below 50% 388 | -10/Mines | Learned Materials machine intel 392 | -10/Mines | Received a Rocket Launcher from a helpful Derelict 427 | -10/Mines | Discovered new exit (range 11) 432 | -10/Mines | Entered Materials 432 | -9/Materials | Evolved 2 slots: Power x1, Propulsion x1 433 | -9/Materials | Loaded intel: 47 machine locations 547 | -9/Materials | Lost 5 parts (1p3n1w) 611 | -9/Materials | Core integrity fell below 50% 619 | -9/Materials | Lost 6 parts (1p3n2w) 652 | -9/Materials | Core integrity fell below 20% 680 | -9/Materials | Destroyed by Y-45 Defender with Heavy Assault Rifle Last Messages --------------- U-05 Engineer lays Concrete. W-16 Scout sends out distress signal. U-05 Engineer lays Concrete. G-34 Mercenary destroyed. U-05 Engineer builds a Wall. R-06 Scavenger collects Aluminum Leg. U-05 Engineer lays Concrete. Lgt. Armor Plating destroyed. U-05 Engineer lays Concrete. R-06 Scavenger collects Aluminum Leg. U-05 Engineer lays Concrete. W-16 Scout sends out distress signal. U-05 Engineer lays Concrete. Datajack destroyed. A-02 Transporter destroyed. K-01 Serf collects debris. Acquired VTOL Module. R-06 Scavenger collects Med. Storage Unit. R-06 Scavenger collects Lgt. Treads. Acquired VTOL Module. Map ----- +----------------------------------------------------+ | | | | | | | | | | | | | | | | | | | | | | | ?????????????????????????????????????????????????? | | ??????????##########?????????????????????????????? | | ??????????# #?????????????????????????????? | | ######????# """#????"""??????????????????????? | | # # ###### """#???"""""?????????????????????? | | """#???"""""?????????????????????? | | #???"""""?????????????????????? | | % # """#????"""?????????????????????"" | | # """#????????????"""?????????????"" | | # """#????????????"R??????????????"" | | "## # # #????????????"""??????????????? | | T## %#################+####?????????????????? | | "### # % o w =!k ^ ##+####???????????? | | #?## g = r ????????? | | #??## wg r r =%@= Y ###???????????????? | | #???# ###################+##?????????????????? | | #???# #?? #????????????T????????????????? | | ###???# # #?????????"???????????????????" | | ####### + ??????????"""??????????????????" | | # ????????????????""???????????????????" | | # ???????????????"""??????????????????? | | #? ???????????????""??????????????????? | | ####### #? ?????????????"""??????????????????? | | #?????# #?? ????????????"""??????????????????? | | ??????# #?? ???????????"""??????????????????? | | ?"""??/ #???###????????????"???????????????????? | | ?"""??# #??????????????????????????????????????? | | ?"""??# #??????????????????????????????????????? | | ??????# #?????????????????????????????"""""????? | | ?"""??# #?????????????????????????????"""""????? | | ?"""??# #?????????????????????????????"""""????? | | ?"""??# #?????"""?????????????????????"""""????? | | ??????? #?????"T"?????????????????????"""""????? | | ??????? #?"""?????????????????????????"""""????? | | ??????? ??"""?????????????????????????"""""????? | | ????????????"""??????????????????????????????????? | | ?????????????????????????????????????????????????? | | ?????????????????????????????????????????????????? | | ?????????????????????????????????????????????????? | +----------------------------------------------------+ Best States ------------- Heat Dissipation 28 Energy Generation 12 Energy Capacity 265 Matter Stores 300 Matter Capacity 300 Sight Range 16 Terrain Scan Density 10 Armor Coverage 230 Evasion (%) 63 Item Schematics ----------------- None Robot Schematics ------------------ None Fabricated ------------ Nothing Alien Tech Used ----------------- None Achievements -------------- Crack Shot One Hack Too Far Challenges ------------ None Game ------ Seed ComponentRecyclingArmor Manual? 0 Play Time 00:19:09 Cumulative 0.6 hours Start 2024.03.31 @ 19:05:27 End 2024.03.31 @ 19:24:23 Sessions 1 Manual Loads 0 Difficulty Rogue Special Mode None Game No. 2 Rogue 2 Adventurer 0 Explorer 0 Win Type - Total 0 Types 0/0/0/0/0/0/0/0/0 Lore% 1 Gallery% 2 Achievement% 3 Wizard Run 0 Options --------- Layout 1 ASCII 0 Keyboard 0 Movement Arrows Keybinds 0 Fullscreen 1 Font 24/Smallcaps Map View 50x35 Zoom Use 0% Tactical HUD 0 Map Filters NONE Filters NONE Steam 1 RUN: 49bf800c-84ed-4b15-b59b-8b5951e38964